bitfinex-derivatives/quotes_ETHF0:USTF0_20250606
["timestamp","ask_amount","ask_price","bid_price","bid_amount"]
[1749227673830,0.79519,2512.9,2512.8,0.79521]
[1749227674024,23.74697419,2513.3,2512.7,3.2078]
[1749227674232,0.79512,2513.2,2513.1,0.7951]
[1749227674731,0.79518,2513.0,2512.9,0.79517]
[1749227674935,0.79522,2512.9,2512.8,0.79522]
[1749227676325,0.79518,2513.0,2512.9,0.79516]
[1749227676527,1.3661,2513.0,2512.9,0.79516]
[1749227676826,0.07133351,2513.1,2513.0,0.79516]
[1749227677424,0.79512,2513.1,2513.0,0.79516]
[1749227678024,0.79518,2513.0,2512.9,0.79516]
[1749227678435,0.79514,2513.1,2513.0,0.79513]
[1749227679433,0.00597419,2513.3,2513.2,0.79509]
[1749227679635,0.80103419,2513.3,2513.2,0.79509]
[1749227680630,0.79518,2513.0,2512.9,0.79515]
[1749227681637,0.86648351,2513.1,2513.0,0.79516]
[1749227684533,0.07133351,2513.1,2513.0,0.79516]
[1749227689938,4.16448319,2513.1,2512.8,5.9]
[1749227690140,0.07133351,2513.1,2513.0,0.79516]
[1749227690434,0.95668029,2513.1,2513.0,0.79516]
[1749227694239,0.95668029,2513.1,2512.7,9.1078]
[1749227694437,2.18384678,2513.0,2512.7,9.1078]
[1749227694631,0.88534678,2512.9,2512.7,9.1078]
[1749227694936,2.97905678,2512.9,2512.7,9.1078]
[1749227695133,0.88534678,2512.8,2512.7,9.1078]
[1749227695433,1.68057678,2512.8,2512.7,9.1078]
[1749227695832,6.68757678,2512.8,2512.7,5.9]
[1749227696031,0.79533,2512.5,2512.3,0.79536]
[1749227696333,0.88534678,2512.4,2512.2,0.6427]
[1749227696639,0.90535418,2512.3,2512.2,1.43812]
[1749227697034,0.90535418,2512.3,2512.2,0.6427]
[1749227697339,0.90571648,2512.3,2512.2,1.43812]
[1749227697737,1.70109648,2512.3,2512.2,0.6427]
[1749227698037,0.90571648,2512.3,2512.2,1.43812]
[1749227698737,0.6555,2513.1,2512.5,1.98825]
[1749227698949,0.79521,2512.9,2512.7,0.79524]
[1749227699135,20.6872,2513.1,2512.7,0.79526]
[1749227699337,20.6872,2513.1,2512.7,0.79524]
[1749227699540,0.79521,2512.9,2512.8,0.79523]
[1749227699844,0.79521,2512.9,2512.6,0.6507]
[1749227700339,0.7952,2512.9,2512.6,0.6507]
[1749227700835,0.79526,2512.7,2512.6,0.6507]
[1749227701136,0.79526,2512.7,2512.3,3.679]
[1749227701137,0.79533,2512.5,2512.3,1.48377]
[1749227701333,1.98824,2512.7,2512.3,0.6884]
[1749227701539,0.79534,2512.5,2512.3,1.48377]
[1749227701738,0.79535,2512.5,2512.3,1.48378]
[1749227701940,0.79536,2512.4,2512.3,0.6884]
[1749227703138,0.79539,2512.3,2512.2,0.6427]
[1749227704537,0.79549,2512.0,2511.9,0.67377419]
[1749227704735,0.79549,2512.0,2511.9,0.00597419]
[1749227705134,1.3322,2512.3,2511.9,0.00597419]
[1749227705331,24.53242,2512.2,2512.0,0.79547]
[1749227705535,23.739,2512.2,2512.1,0.79543]
[1749227705735,0.79548,2512.1,2511.9,0.00597419]
[1749227706040,0.79549,2512.0,2511.9,0.00597419]
[1749227707742,2.13559,2512.0,2511.9,0.00597419]
[1749227708545,0.79567,2511.5,2511.3,0.6618]
[1749227708740,0.79567,2511.5,2511.0,10.20529]
[1749227708741,5.008,2511.4,2511.0,3.2078]
[1749227709046,5.008,2511.4,2511.0,0.79579]
[1749227709047,0.79575,2511.2,2511.0,0.79579]
[1749227709937,3.2078,2511.3,2510.8,0.65887419]
[1749227710142,0.79577,2511.1,2510.9,0.79582]
[1749227710336,4.5479,2511.3,2510.8,0.65887419]
[1749227710644,0.79577,2511.1,2510.9,0.79582]
[1749227710843,0.79578,2511.1,2510.9,0.79581]
[1749227711044,4.5479,2511.3,2510.9,0.79581]
[1749227711443,0.79578,2511.1,2510.9,0.79581]
[1749227711842,0.79582,2511.0,2510.8,1.45472419]
[1749227712037,0.79583,2510.9,2510.8,0.65887419]
[1749227712245,0.00597419,2511.4,2511.0,1.98949]
[1749227712446,0.00597419,2511.4,2511.3,0.79571]
[1749227717251,0.00597419,2511.4,2511.3,3.42611]
[1749227718751,0.00597419,2511.4,2511.3,2.10121]
[1749227718952,0.00597419,2511.4,2510.9,3.679]
[1749227719151,3.2078,2511.3,2510.9,4.3258]
[1749227719348,0.79579,2511.1,2511.0,0.7958]
[1749227719658,25.0987,2511.2,2510.9,4.3258]
[1749227719854,25.0987,2511.2,2511.1,0.79577]
[1749227720350,25.89447,2511.2,2511.0,0.79578]
[1749227720552,25.89447,2511.2,2511.1,0.79578]
[1749227720857,0.79578,2511.1,2511.0,0.79579]
[1749227721157,1.2992,2511.1,2510.9,4.3258]
[1749227721354,2.09499,2511.1,2511.0,0.79581]
[1749227721560,1.2992,2511.1,2511.0,0.79581]
[1749227721757,0.79581,2511.0,2510.9,4.3258]
[1749227721961,0.79584,2510.9,2510.8,0.00597419]
[1749227722256,2.09504,2510.9,2510.8,0.00597419]
[1749227722852,0.796,2510.4,2510.3,1.42822]
[1749227723157,0.796,2510.4,2510.1,3.679]
[1749227723158,0.79612,2510.0,2509.6,6.8868]
[1749227723461,3.2078,2510.0,2509.9,0.79616]
[1749227723757,3.2078,2510.0,2509.7,0.662]
[1749227723968,1.2709,2509.9,2509.8,0.79619]
[1749227725158,3.2078,2510.0,2509.9,0.79615]
[1749227726361,4.5578,2510.0,2509.9,0.79615]
[1749227727464,0.00597419,2510.1,2510.0,0.79612]
[1749227727866,4.19e-06,2510.1,2510.0,5.79612]
[1749227728454,4.19e-06,2510.1,2510.0,7.07002]
[1749227728755,4.19e-06,2510.1,2510.0,0.79612]
[1749227733769,0.79609419,2510.1,2510.0,0.79612]
[1749227733972,4.19e-06,2510.1,2509.7,0.662]
[1749227734176,4.004,2510.0,2509.9,0.7962]
[1749227735370,21.9478,2510.0,2509.7,0.662]
[1749227735573,23.42602,2510.0,2509.9,0.79622]
[1749227735874,28.43502,2510.0,2509.9,0.79622]
[1749227736072,0.79625,2509.8,2509.7,0.79626]
[1749227736270,0.79625,2509.8,2509.7,0.79625]
[1749227736271,0.79627,2509.8,2509.7,0.79625]
[1749227736475,0.6845,2509.9,2509.8,0.79625]
[1749227736672,1.48072,2509.9,2509.8,0.79625]
[1749227737169,0.6845,2509.9,2509.8,0.79625]
[1749227737377,3.8898,2510.0,2509.9,0.79619]
[1749227737676,3.2078,2510.0,2509.9,0.79619]
[1749227737978,4.19e-06,2510.1,2509.7,1.99063]
[1749227737979,5.00900419,2510.1,2510.0,0.79614]
[1749227738173,5.00900419,2510.1,2510.0,4.00394]
[1749227738379,4.19e-06,2510.1,2510.0,0.79614]
[1749227738677,4.19e-06,2510.1,2510.0,2.14394]
[1749227739374,4.19e-06,2510.1,2509.9,0.6736]
[1749227739574,4.19e-06,2510.1,2509.7,3.679]
[1749227739772,0.79613,2510.0,2509.9,0.79613]
[1749227739971,0.79613419,2510.1,2510.0,0.79613]
[1749227740277,0.79613,2510.0,2509.9,0.79614]
[1749227740479,3.2078,2510.0,2509.7,0.6736]
[1749227740776,0.79619,2509.9,2509.8,0.79619]
[1749227742475,3.8843,2510.0,2509.9,0.79616]
[1749227742673,4.19e-06,2510.1,2510.0,0.79613]
[1749227744471,4.19e-06,2510.1,2510.0,5.79613]
[1749227745479,26.39351188,2511.2,2510.0,5.79613]
[1749227745480,3.2078,2511.6,2511.5,0.79565]
[1749227745678,0.79563,2511.6,2511.1,3.2078]
[1749227745977,0.79564,2511.6,2511.4,0.79566]
[1749227746779,8.2138,2511.7,2511.4,0.79566]
[1749227746979,0.79565,2511.6,2511.4,0.79566]
[1749227747180,0.79565,2511.6,2511.5,0.79565]
[1749227747480,8.2138,2511.7,2511.3,0.6383]
[1749227747980,5.006,2511.7,2511.6,0.79562]
[1749227749877,0.00597419,2511.8,2511.7,0.79559]
[1749227750082,5.01097419,2511.8,2511.4,4.4709]
[1749227750277,5.01097419,2511.8,2511.6,0.7956]
[1749227750478,5.01097419,2511.8,2511.7,0.79559]
[1749227751487,26.08252,2512.3,2511.7,0.79559]
[1749227751488,3.2078,2512.8,2511.7,8.2078]
[1749227751791,0.6778,2513.4,2512.6,3.2078]
[1749227751977,3.2078,2513.5,2513.4,0.79505]
[1749227752479,3.2078,2513.5,2513.3,0.79508]
[1749227752683,3.2078,2513.5,2513.2,0.00597419]
[1749227752984,4.00283,2513.5,2513.3,0.79508]
[1749227753284,4.00282,2513.5,2513.2,0.00597419]
[1749227753586,4.00284,2513.5,2513.3,0.79506]
[1749227754285,0.79505,2513.4,2513.2,0.00597419]
[1749227754687,0.79508,2513.3,2513.2,0.00597419]
[1749227756388,0.79508,2513.3,2513.2,0.80109419]
[1749227756588,0.79508,2513.3,2513.2,0.80107419]
[1749227756784,0.79509,2513.4,2513.2,0.80107419]
[1749227756986,0.79511,2513.3,2513.2,0.80107419]
[1749227757387,0.79511,2513.3,2513.2,0.00597419]
[1749227757587,0.79509,2513.4,2513.2,0.00597419]
[1749227757787,0.79509,2513.4,2513.3,0.79511]
[1749227758290,0.79511,2513.3,2513.2,0.80109419]
[1749227758693,4.00285,2513.5,2513.4,0.79507]
[1749227758996,0.79508,2513.4,2513.3,0.79509]
[1749227760388,0.79509,2513.4,2513.3,0.79508]
[1749227761496,0.79511,2513.3,2513.2,0.00597419]
[1749227761688,5.79611,2513.3,2513.2,0.00597419]
[1749227761990,0.79516,2513.2,2513.1,0.79515]
[1749227762489,8.2088,2513.5,2512.9,1.98809]
[1749227762683,0.79515,2513.2,2513.1,0.79513]
[1749227762885,0.79512,2513.3,2513.2,0.79511]
[1749227763686,0.7952,2513.1,2513.0,0.79519]
[1749227763890,1.9877,2513.4,2512.9,1.26987419]
[1749227763891,0.7952,2513.0,2512.9,0.00597419]
[1749227764981,2.1438,2513.0,2512.9,0.00597419]
[1749227765388,3.2078,2513.2,2513.1,0.79517]
[1749227765591,3.2078,2513.2,2512.9,1.99403419]
[1749227765592,23.721,2513.2,2512.9,0.00597419]
[1749227765799,0.79517,2513.0,2512.9,0.80115419]
[1749227766088,0.79517,2513.0,2512.9,0.80117419]
[1749227766288,24.51616,2513.1,2513.0,0.79514]
[1749227766490,0.79506,2513.4,2513.3,0.79505]
[1749227766691,9.00384,2513.5,2513.4,0.79504]
[1749227766902,0.79498,2513.6,2513.3,1.98769]
[1749227767096,0.00597419,2513.7,2513.6,0.79498]
[1749227767097,0.80092419,2513.7,2513.6,0.79498]
[1749227767392,0.80094419,2513.7,2513.6,0.79498]
[1749227767594,0.80094419,2513.7,2513.3,4.03097]
[1749227767595,0.795,2513.6,2513.5,0.79498]
[1749227767988,0.80093419,2513.7,2513.6,0.79498]
[1749227768393,0.00597419,2513.7,2513.6,0.79498]
[1749227769283,0.00597419,2513.7,2513.6,1.44428]
[1749227769896,6.54603,2514.4,2513.6,1.44428]
[1749227769897,5.0,2514.3,2514.0,0.79483]
[1749227770089,0.79482,2514.1,2513.9,0.79487]
[1749227770295,0.7949,2513.9,2513.7,0.79494]
[1749227770593,0.79489,2513.9,2513.6,0.6493]
[1749227770786,0.00597419,2514.0,2513.6,0.6493]
[1749227770994,0.79495,2513.7,2513.6,0.6493]
[1749227771192,0.79495,2513.7,2513.6,1.44428]
[1749227771493,0.79495,2513.7,2513.6,0.6493]
[1749227771689,0.79495,2513.7,2513.6,1.44428]
[1749227772193,0.79494,2513.8,2513.7,0.79494]
[1749227772390,0.00597419,2514.0,2513.9,0.79489]
[1749227772590,0.79489,2513.9,2513.8,0.7949]
[1749227773093,0.00597419,2514.0,2513.6,0.6493]
[1749227773395,0.79495,2513.7,2513.6,1.44426]
[1749227773589,0.79498,2513.6,2513.5,3.2078]
[1749227773889,1.98746,2513.6,2513.0,0.6896]
[1749227774095,0.79514,2513.1,2513.0,0.6896]
[1749227774389,0.79517,2513.0,2512.9,0.00597419]
[1749227774594,2.13587,2513.0,2512.9,0.00597419]
[1749227774796,0.79536,2512.4,2512.3,3.2078]
[1749227775391,3.2078,2512.4,2511.8,3.8974]
[1749227775592,0.79548,2512.1,2512.0,0.79546]
[1749227775897,0.00597419,2512.3,2512.2,0.79542]
[1749227776290,0.00597419,2512.3,2511.9,1.3325]
[1749227776496,0.79544,2512.2,2512.1,0.79545]
[1749227776899,0.00597419,2512.3,2511.9,1.3325]
[1749227777098,0.80138419,2512.3,2512.2,0.79543]
[1749227777300,0.79545,2512.2,2512.1,0.79545]
[1749227777495,0.00597419,2512.3,2511.9,1.3325]
[1749227777698,0.79544,2512.2,2512.1,0.79544]
[1749227777900,0.80139419,2512.3,2512.2,0.79543]
[1749227778101,0.79545,2512.2,2512.1,0.79545]
[1749227778302,0.80139419,2512.3,2512.2,0.79543]
[1749227778701,0.79543,2512.2,2512.1,0.79543]
[1749227779104,0.80139419,2512.3,2512.2,0.79543]
[1749227779405,0.00597419,2512.3,2512.2,0.79543]
[1749227779704,0.80139419,2512.3,2511.9,1.3325]
[1749227779900,0.80139419,2512.3,2512.2,0.79543]
[1749227780100,0.00597419,2512.3,2512.2,0.79543]
[1749227780504,0.00597419,2512.3,2512.2,4.00323]
[1749227780704,0.00597419,2512.3,2512.2,0.79543]
[1749227781202,0.80137419,2512.3,2512.2,0.79543]
[1749227781404,0.80138419,2512.3,2512.2,0.79543]
[1749227781605,0.79544,2512.2,2512.1,0.79544]
[1749227782295,0.79549,2512.1,2512.0,0.79548]
[1749227782499,0.00597419,2512.3,2512.2,0.79543]
[1749227782906,0.80137419,2512.3,2512.2,0.79543]
[1749227783106,0.80137419,2512.3,2512.2,0.40744623]
[1749227783497,0.80137419,2512.3,2511.9,6.5092]
[1749227783702,0.80139419,2512.3,2512.2,0.79543]
[1749227784506,0.00597419,2512.3,2512.2,0.79543]
[1749227784703,0.00597419,2512.3,2512.2,9.00323]
[1749227785108,5.014,2512.9,2512.8,0.79524]
[1749227785605,3.2078,2513.0,2512.9,0.79521]
[1749227785809,4.00297,2513.0,2512.9,0.79521]
[1749227786201,0.79522,2512.9,2512.8,0.79522]
[1749227786408,0.79525,2512.8,2512.7,0.79525]
[1749227787212,0.79527,2512.7,2512.6,0.79528]
[1749227787509,0.79524,2512.9,2512.8,0.79524]
[1749227789207,4.00298,2513.0,2512.9,0.79521]
[1749227789607,3.2078,2513.0,2512.9,0.79521]
[1749227791213,5.01997419,2513.2,2513.1,0.79514]
[1749227791607,0.00597419,2513.2,2513.1,4.00294]
[1749227791807,0.00597419,2513.2,2513.1,0.79514]
[1749227792614,0.79521,2513.0,2512.9,0.79519]
[1749227793302,2.04921,2513.0,2512.9,0.79519]
[1749227793501,0.79521,2512.9,2512.8,0.79521]
[1749227793713,2.04921,2512.9,2512.8,0.79521]
[1749227794810,0.79527,2512.7,2512.6,1.44128]
[1749227795009,0.79527,2512.7,2512.6,0.79528]
[1749227796416,4.00305,2512.8,2512.7,0.79527]
[1749227796718,3.2078,2512.8,2512.7,0.79527]
[1749227797021,4.00303,2512.8,2512.7,0.79527]
[1749227799718,2.04923,2512.9,2512.8,0.79524]
[1749227799921,0.79529,2512.8,2512.7,0.79525]
[1749227800820,2.06379,2512.8,2512.7,0.79525]
[1749227801925,2.97720178,2512.8,2512.7,0.79525]
[1749227803116,0.91341178,2512.8,2512.7,0.79525]
[1749227803322,0.00597419,2513.2,2513.1,0.79514]
[1749227803923,0.00597419,2513.2,2513.1,2.75244]
[1749227804130,3.2078,2514.2,2513.1,6.9573]
[1749227804332,3.2078,2514.2,2514.1,0.79483]
[1749227805029,4.00259,2514.2,2514.1,0.79483]
[1749227805627,0.79486,2514.0,2513.9,0.63597419]
[1749227805831,0.79486,2514.0,2513.9,0.00597419]
[1749227806226,0.79486,2514.0,2513.9,0.80086419]
[1749227806426,2.12806,2514.0,2513.9,0.00597419]
[1749227807538,0.79515,2513.2,2513.0,3.2078]
[1749227807738,0.79516,2513.1,2512.8,0.6465]
[1749227807936,0.79516,2513.1,2513.0,0.79517]
[1749227808124,3.2078,2513.3,2512.7,0.6778]
[1749227808125,4.541,2513.3,2512.7,0.6778]
[1749227808332,4.541,2513.3,2512.9,0.79518]
[1749227808531,0.79521,2512.9,2512.8,0.80120419]
[1749227808731,0.79521,2512.9,2512.8,0.00597419]
[1749227809133,2.08551,2512.9,2512.8,0.00597419]
[1749227814944,1.2903,2512.9,2512.8,0.80121419]
[1749227815147,25.80151,2512.9,2512.8,0.00597419]
[1749227815345,26.70109683,2512.9,2512.8,0.00597419]
[1749227815545,26.70109683,2512.9,2512.8,0.80121419]
[1749227816036,26.70109683,2512.9,2512.8,0.00597419]
[1749227817247,26.70105165,2512.9,2512.8,0.00597419]
[1749227818650,25.41075165,2512.9,2512.8,0.80121419]
[1749227819642,1.69475165,2512.9,2512.8,0.00597419]
[1749227819946,25.41075165,2512.9,2512.8,0.00597419]
[1749227820134,26.67425165,2512.9,2512.8,0.00597419]
[1749227820735,0.7954,2512.3,2512.2,0.6318]
[1749227821041,0.7955,2512.1,2512.0,0.79545]
[1749227821348,0.79546,2512.2,2512.1,0.79543]
[1749227821745,0.79542,2512.3,2512.2,0.79543]
[1749227822844,0.7955,2512.0,2511.9,0.00597419]
[1749227823045,28.6192617,2512.0,2511.9,0.00597419]
[1749227823642,27.7203,2512.0,2511.9,0.00597419]
[1749227823847,33.61882782,2512.0,2511.9,4.19e-06]
[1749227824055,0.79575,2511.1,2511.0,0.6628]
[1749227824356,26.9248,2511.3,2510.7,3.2078]
[1749227824549,0.79577,2511.1,2511.0,0.79576]
[1749227824856,0.79579,2511.1,2511.0,0.79579]
[1749227825151,25.0063,2511.2,2510.8,0.00597419]
[1749227825644,0.79582,2511.0,2510.9,0.79582]
[1749227825845,25.0063,2511.2,2510.9,0.79582]
[1749227826044,0.79584,2510.9,2510.8,0.00597419]
[1749227826246,3.2078,2511.0,2510.8,0.00597419]
[1749227826456,3.2078,2511.0,2510.9,0.79581]
[1749227826654,4.00358,2511.0,2510.9,0.79581]
[1749227826954,0.79581,2510.9,2510.8,0.80179419]
[1749227827347,4.00359,2511.0,2510.8,0.00597419]
[1749227827550,2.18242,2510.9,2510.8,0.00597419]
[1749227828353,2.82602,2510.9,2510.8,0.00597419]
[1749227829653,0.79607,2510.1,2510.0,2.10499]
[1749227829854,5.001,2510.2,2510.1,0.79607]
[1749227830153,5.001,2510.6,2510.3,1.98998]
[1749227830347,3.2078,2511.1,2510.9,0.7958]
[1749227830551,5.001,2511.0,2510.9,0.7958]
[1749227830754,0.79584,2510.9,2510.8,0.79582]
[1749227830954,0.79585,2510.8,2510.7,0.80183419]
[1749227831250,0.79585,2510.8,2510.7,0.00597419]
[1749227831448,4.00365,2510.8,2510.7,0.00597419]
[1749227831856,9.00365,2510.8,2510.7,0.00597419]
[1749227832346,9.65805,2510.8,2510.7,0.00597419]
[1749227832549,28.38605,2510.8,2510.7,0.00597419]
[1749227835056,28.38905,2510.8,2510.7,0.00597419]
[1749227836551,0.79609,2510.2,2510.1,0.79609]
[1749227836752,5.0,2510.2,2510.1,0.79609]
[1749227836955,5.79606,2510.2,2510.1,0.79609]
[1749227837559,5.0,2510.2,2510.1,0.79609]
[1749227839454,4.00372,2510.7,2510.6,0.79593]
[1749227839651,27.73372,2510.7,2510.6,0.79593]
[1749227839853,19.52487,2510.9,2510.8,0.79583]
[1749227840160,0.79587,2510.8,2510.7,1.43038]
[1749227840862,0.79587,2510.8,2510.7,1.43039]
[1749227841161,0.79587,2510.8,2510.7,1.4304]
[1749227841162,4.00367,2510.8,2510.7,1.4304]
[1749227841656,22.73367,2510.8,2510.7,0.6345]
[1749227841852,22.73367,2510.8,2510.7,1.4304]
[1749227843364,22.73367,2510.8,2510.7,0.6345]
[1749227843860,0.7961,2510.2,2510.1,0.79605]
[1749227844260,8.2088,2510.3,2510.2,0.79606]
[1749227844564,9.00483,2510.3,2510.2,0.79606]
[1749227844753,0.79609,2510.2,2510.1,0.79608]
[1749227844956,0.79612,2510.1,2510.0,0.79611]
[1749227845155,0.79619,2509.8,2509.7,0.6802]
[1749227845364,5.79719,2509.8,2509.7,0.6802]
[1749227845756,5.79719,2509.8,2509.7,1.47642]
[1749227845955,5.79719,2509.8,2509.7,0.6802]
[1749227846163,5.79719,2509.8,2509.7,1.47642]
[1749227847256,5.79719,2509.8,2509.7,0.6802]
[1749227847858,5.79719,2509.8,2509.7,1.47642]
[1749227848262,5.001,2509.8,2509.7,1.47642]
[1749227849958,0.79616,2509.9,2509.8,0.79619]
[1749227850261,25.42760324,2509.9,2509.8,0.79619]
[1749227850565,24.63144324,2509.9,2509.8,0.79619]
[1749227850961,23.734,2509.9,2509.8,2.08759]
[1749227851259,0.00597419,2510.0,2509.9,0.79616]
[1749227851454,0.00597419,2510.0,2509.9,2.08756]
[1749227851658,5.002,2510.2,2510.1,0.79609]
[1749227851857,3.2078,2510.6,2510.5,0.79597]
[1749227851858,21.9398,2510.6,2510.5,0.79597]
[1749227852065,28.63532118,2510.6,2510.5,0.79597]
[1749227852262,9.10739118,2510.6,2510.5,0.79597]
[1749227852467,0.89759118,2510.6,2510.5,0.79597]
[1749227852775,0.00597419,2510.8,2510.7,0.7959]
[1749227854664,0.00597419,2510.8,2510.7,1.4836]
[1749227855868,0.80184419,2510.8,2510.7,1.4836]
[1749227856067,0.00597419,2510.8,2510.7,1.4836]
[1749227856757,0.80184419,2510.8,2510.7,1.4836]
[1749227856960,0.00597419,2510.8,2510.7,1.4836]
[1749227858164,0.80184419,2510.8,2510.7,1.4836]
[1749227858470,0.00597419,2510.8,2510.7,1.4836]
[1749227858971,0.80184419,2510.8,2510.7,1.4836]
[1749227859170,0.00597419,2510.8,2510.7,1.4836]
[1749227859371,0.80184419,2510.8,2510.7,1.4836]
[1749227859773,0.80184419,2510.8,2510.7,0.6877]
[1749227860470,0.79592,2510.7,2510.3,2.64755419]
[1749227860672,5.79794,2510.6,2510.3,1.29197419]
[1749227860872,5.79794,2510.6,2510.5,0.79597]
[1749227861170,5.79795,2510.6,2510.5,0.79597]
[1749227861365,7.08475,2510.6,2510.5,0.79597]
[1749227861563,5.002,2510.6,2510.5,0.79597]
[1749227861764,3.2078,2510.7,2510.6,0.79594]
[1749227861972,26.9368,2510.7,2510.6,0.79594]
[1749227863268,26.9368,2510.7,2510.6,0.40767997]
[1749227863471,0.00597419,2510.8,2510.7,0.79591]
[1749227863866,5.002,2511.3,2511.2,0.79575]
[1749227864671,0.79576,2511.2,2511.1,1.44886]
[1749227864972,0.79576,2511.2,2510.9,0.79584]
[1749227864973,0.89601891,2511.2,2510.9,0.79584]
[1749227865171,0.79587,2510.9,2510.7,0.86723351]
[1749227865371,9.10581891,2510.8,2510.7,0.86724351]
[1749227865572,5.89801891,2510.8,2510.7,0.86724351]
[1749227866077,0.89601891,2510.8,2510.7,0.86724351]
[1749227866271,5.89801891,2510.8,2510.7,0.86724351]
[1749227866575,0.89601891,2510.8,2510.7,0.86724351]
[1749227868280,0.89601891,2510.8,2510.7,0.79591]
[1749227869679,5.89401891,2510.8,2510.7,0.79591]
[1749227872785,4.998,2510.8,2510.7,0.79591]
[1749227875478,4.998,2510.8,2510.7,0.86724351]
[1749227875776,5.79392,2510.8,2510.7,0.86724351]
[1749227875980,10.33042,2510.8,2510.7,0.07133351]
[1749227876180,11.22644744,2510.8,2510.7,0.07133351]
[1749227876984,5.89402744,2510.8,2510.7,0.86728351]
[1749227879493,9.10182744,2510.8,2510.7,0.86728351]
[1749227880787,9.1040501,2510.8,2510.7,0.86728351]
[1749227882093,9.8999901,2510.8,2510.7,0.86728351]
[1749227882390,11.1540901,2510.8,2510.7,0.07133351]
[1749227883181,4.1060501,2510.8,2510.7,0.86731351]
[1749227883491,27.8240501,2510.8,2510.7,0.86731351]
[1749227883691,29.8740901,2510.8,2510.7,0.86731351]
[1749227883997,29.0781501,2510.8,2510.7,0.86731351]
[1749227884187,27.8240501,2510.8,2510.7,0.86731351]
[1749227884896,1e-07,2510.8,2510.7,5.86731351]
[1749227885184,4.19e-06,2511.4,2511.3,0.79579]
[1749227885385,3.2078,2512.1,2512.0,0.79556]
[1749227885784,3.2078,2512.1,2511.6,1.3742]
[1749227885984,3.2078,2511.8,2511.7,0.79565]
[1749227886592,3.2078,2511.8,2511.5,0.00597419]
[1749227886788,0.79568,2511.7,2511.6,0.79569]
[1749227887086,0.79569,2511.6,2511.5,0.00597419]
[1749227887292,2.09309,2511.6,2511.5,0.00597419]
[1749227888185,1.2974,2511.6,2511.5,0.80169419]
[1749227888591,2.09309,2511.6,2511.5,0.00597419]
[1749227888795,1.2974,2511.6,2511.5,0.80169419]
[1749227889085,3.8886,2511.8,2511.5,0.00597419]
[1749227889290,4.997,2511.6,2511.5,0.80168419]
[1749227889996,5.79269,2511.6,2511.5,0.00597419]
[1749227890183,7.09009,2511.6,2511.5,0.00597419]
[1749227890388,6.2944,2511.6,2511.5,0.80169419]
[1749227890588,3.8886,2511.8,2511.7,0.79566]
[1749227890794,3.2078,2511.8,2511.7,0.79566]
[1749227890991,26.9208,2511.8,2511.7,0.79566]
[1749227891392,26.9208,2511.8,2511.6,0.79568]
[1749227891590,0.79569,2511.6,2511.5,0.00597419]
[1749227892092,1.3215,2511.7,2511.6,0.79569]
[1749227892396,0.79569,2511.6,2511.5,0.80167419]
[1749227892584,0.79569,2511.6,2511.5,0.00597419]
[1749227892792,2.11719,2511.6,2511.5,0.00597419]
[1749227892991,2.76389,2511.6,2511.5,0.00597419]
[1749227893191,7.76389,2511.6,2511.5,0.00597419]
[1749227893396,1.98932,2511.5,2511.0,0.79586]
[1749227893592,4.00365,2511.1,2511.0,0.79586]
[1749227893792,9.00065,2511.1,2511.0,0.79586]
[1749227894298,8.2048,2511.1,2511.0,0.79586]
[1749227894496,9.00065,2511.1,2511.0,0.79586]
[1749227894698,10.30125,2511.1,2511.0,0.79586]
[1749227895003,9.5054,2511.1,2510.8,0.64797419]
[1749227895194,9.5054,2511.1,2511.0,0.79588]
[1749227895588,10.30125,2511.1,2511.0,0.79588]
[1749227896501,8.2048,2511.1,2511.0,0.79588]
[1749227896997,4.07972981,2511.1,2511.0,0.79588]
[1749227898794,4.87557981,2511.1,2511.0,0.79588]
[1749227899496,4.07972981,2511.1,2511.0,0.79588]
[1749227900198,0.87192981,2511.1,2511.0,0.79588]
[1749227900502,4.992,2511.2,2511.1,0.79585]
[1749227900800,5.86360013,2511.2,2511.1,0.79585]
[1749227900998,0.87160013,2511.2,2511.1,0.79585]
[1749227901995,8.1998,2511.4,2511.3,0.79579]
[1749227902198,9.07130342,2511.4,2511.3,0.79579]
[1749227903492,4.07930342,2511.4,2511.3,0.79579]
[1749227903892,0.87150342,2511.4,2511.3,0.79579]
[1749227904100,21.9188,2511.7,2511.6,0.7957]
[1749227904299,27.78223038,2511.7,2511.6,0.7957]
[1749227904499,9.07123038,2511.7,2511.6,0.7957]
[1749227904700,27.78223038,2511.7,2511.6,0.7957]
[1749227905094,9.86690038,2511.7,2511.6,0.7957]
[1749227905400,9.07123038,2511.7,2511.6,0.7957]
[1749227905599,8.99547,2511.7,2511.6,0.7957]
[1749227906098,0.7957,2511.6,2511.5,1.43942]
[1749227906300,0.79575,2511.5,2511.4,0.79574]
[1749227906500,0.79572,2511.6,2511.5,0.79572]
[1749227906804,0.79582,2511.3,2511.2,0.7958]
[1749227907005,0.79582,2511.3,2511.2,0.79583]
[1749227907006,4.992,2511.3,2511.2,0.79583]
[1749227907504,5.7878,2511.3,2511.2,0.79583]
[1749227907906,7.0598,2511.3,2511.2,0.79583]
[1749227908205,7.05982,2511.3,2511.2,0.79583]
[1749227909105,6.264,2511.3,2510.8,0.00597419]
[1749227909311,3.2078,2510.9,2510.8,0.80190419]
[1749227909509,8.99572,2510.9,2510.8,0.80190419]
[1749227909999,10.32022,2510.9,2510.8,0.00597419]
[1749227911907,28.2333,2510.9,2510.8,0.80192419]
[1749227912208,26.9088,2510.9,2510.8,0.80192419]
[1749227912611,27.70472,2510.9,2510.8,0.80192419]
[1749227912819,27.70472,2510.9,2510.8,0.00597419]
[1749227913408,27.70472,2510.9,2510.8,0.00127653]
[1749227917913,0.79611,2510.3,2510.2,0.6911]
[1749227918211,4.00391,2510.3,2510.2,1.48724]
[1749227918811,0.79626,2509.9,2509.8,0.79625]
[1749227919117,3.2078,2509.9,2509.8,0.79627]